lending/lending_fUSD_20251107
["ID","MTS","AMOUNT","RATE_DAILY","PERIOD"]
[393382389,1762555629969,500.0,0.0003911,120]
[393382390,1762555630471,151.0,0.0003911,120]
[393382391,1762555630578,500.0,0.0003911,120]
[393382392,1762555630655,151.0,0.0003911,120]
[393382393,1762555631079,151.0,0.0003911,120]
[393382394,1762555631183,500.0,0.0003911,120]
[393382395,1762555631695,151.0,0.0003911,120]
[393382396,1762555631806,500.0,0.0003911,120]
[393382397,1762555632376,151.0,0.0003911,120]
[393382398,1762555632467,500.0,0.0003911,120]
[393382399,1762555632993,151.0,0.0003911,120]
[393382400,1762555633091,500.0,0.0003911,120]
[393382401,1762555633662,151.0,0.0003911,120]
[393382402,1762555633787,500.0,0.0003911,120]
[393382403,1762555634323,200.0,0.0003911,120]
[393382404,1762555634471,151.0,0.0003911,120]
[393382405,1762555634573,500.0,0.0003911,120]
[393382406,1762555634851,200.0,0.0003911,120]
[393382407,1762555635233,500.0,0.0003911,120]
[393382408,1762555636470,171.71921447,0.0003911,120]
[393382409,1762555637861,208.01540995,0.0003911,120]
[393382410,1762555637940,250.0,0.0003911,120]
[393382411,1762555638481,250.0,0.0003911,120]
[393382412,1762555638815,200.0,0.0003911,120]
[393382413,1762555639131,250.0,0.0003911,120]
[393382414,1762555639720,322.6107,0.0003911,120]
[393382415,1762555639980,250.0,0.0003911,120]
[393382416,1762555640370,250.0,0.0003911,120]
[393382417,1762555640944,200.0,0.0003911,120]
[393382418,1762555641037,250.0,0.0003911,120]
[393382419,1762555641173,500.0,0.0003911,120]
[393382420,1762555641697,250.0,0.0003911,120]
[393382421,1762555641766,500.0,0.0003911,120]
[393382422,1762555642347,250.0,0.0003911,120]
[393382423,1762555642423,500.0,0.0003911,120]
[393382424,1762555642983,500.0,0.0003911,120]
[393382425,1762555643623,500.0,0.0003911,120]
[393382426,1762555644311,500.0,0.0003911,120]
[393382427,1762555644890,500.0,0.0003911,120]
[393382428,1762555645502,500.0,0.0003911,120]
[393382429,1762555646135,500.0,0.0003911,120]
[393382430,1762555646775,500.0,0.0003911,120]
[393382431,1762555647414,500.0,0.0003911,120]
[393382432,1762555648048,500.0,0.0003911,120]
[393382433,1762555648680,500.0,0.0003911,120]
[393382434,1762555649325,500.0,0.0003911,120]
[393382435,1762555649955,500.0,0.0003911,120]
[393382436,1762555650555,500.0,0.0003911,120]
[393382437,1762555651187,500.0,0.0003911,120]
[393382438,1762555651267,474.36911777,0.0003911,120]
[393382439,1762555651977,500.0,0.0003911,120]
[393382440,1762555652554,500.0,0.0003911,120]
[393382441,1762555653172,500.0,0.0003911,120]
[393382442,1762555664555,182.22026129,0.0003911,120]
[393382443,1762555671459,500.0,0.0003911,120]
[393382444,1762555671706,183.27273281,0.0003911,120]
[393382445,1762555674446,500.0,0.0003911,30]
[393382446,1762555674718,500.0,0.0003911,30]
[393382447,1762555674973,500.0,0.0003911,30]
[393382448,1762555700327,275.20145949,0.0003911,120]
[393382449,1762555704544,472.8489474,0.0003911,120]
[393382450,1762555730391,204.4592385,0.0003911,120]
[393382451,1762555754786,500.0,0.0003911,120]
[393382452,1762555755024,404.64588832,0.0003911,120]
[393382453,1762555765857,509.91851488,0.0003911,120]
[393382459,1762555831914,-500.0,0.00016424,2]
[393382460,1762555831924,-192.61015235,0.00016466,2]
[393382461,1762555831934,-200.0,0.00016566,2]
[393382462,1762555831944,-1200.0,0.00016614,2]
[393382463,1762555831954,-300.0,0.00016614,2]
[393382464,1762555831964,-490.0,0.00016615,2]
[393382465,1762555831974,-244.0,0.00016615,2]
[393382466,1762555831984,-61525.17,0.00016616,2]
[393382467,1762555831995,-256.39,0.00016661,2]
[393382468,1762555832006,-200.0,0.00016705,2]
[393382469,1762555832017,-610.0,0.00016817,2]
[393382470,1762555832027,-193.79,0.00016986,2]
[393382471,1762555832037,-250.0,0.00017,2]
[393382472,1762555832047,-2500.0,0.000172,6]
[393382473,1762555832057,-200.0,0.000172,6]
[393382474,1762555832067,-9999.99,0.00017298,2]
[393382475,1762555832078,-4556.37,0.00017298,2]
[393382476,1762555832088,-5100.0,0.000173,6]
[393382477,1762555832099,-500.0,0.000173,6]
[393382478,1762555832109,-7700.0,0.000174,6]
[393382479,1762555832121,-700.0,0.000174,6]
[393382480,1762555832137,-10300.0,0.000175,6]
[393382481,1762555832150,-1000.0,0.000175,6]
[393382482,1762555832160,-343.0,0.00017534,2]
[393382483,1762555832170,-2751.0,0.00017558,2]
[393382484,1762555832182,-354.86912791,0.00017599,2]
[393382485,1762555832192,-530.69707921,0.00017599,2]
[393382486,1762555832202,-156.49934778,0.00017599,2]
[393382487,1762555832212,-217.49120534,0.00017599,2]
[393382489,1762555832223,-213.535815,0.000176,6]
[393382491,1762555832234,-202.93383,0.000176,6]
[393382493,1762555832245,-12900.0,0.000176,6]
[393382494,1762555832255,-1200.0,0.000176,6]
[393382495,1762555832265,-354.86912786,0.00017632,2]
[393382496,1762555832275,-530.69707915,0.00017632,2]
[393382498,1762555832285,-354.86912786,0.00017666,2]
[393382500,1762555832294,-530.69707915,0.00017666,2]
[393382502,1762555832305,-213.535815,0.0001767,6]
[393382505,1762555832314,-202.93383,0.0001767,6]
[393382507,1762555832324,-504.75986535,0.00017673,2]
[393382509,1762555832333,-168.23721633,0.00017673,2]
[393382511,1762555832344,-500.0,0.00017673,2]
[393382513,1762555832353,-500.71108766,0.00017673,2]
[393382515,1762555832363,-500.0,0.00017673,2]
[393382518,1762555832373,-500.0,0.00017673,2]
[393382520,1762555832383,-500.0,0.00017673,2]
[393382522,1762555832392,-500.0,0.00017673,2]
[393382523,1762555832402,-503.03575028,0.00017673,2]
[393382524,1762555832412,-500.0,0.00017673,2]
[393382525,1762555832423,-605.78717603,0.00017673,2]
[393382527,1762555832433,-500.0,0.00017673,2]
[393382529,1762555832443,-500.0,0.00017673,2]
[393382531,1762555832454,-151.0,0.00017688,2]
[393382533,1762555832464,-151.0,0.00017688,2]
[393382535,1762555832474,-151.0,0.00017688,2]
[393382537,1762555832484,-151.0,0.00017688,2]
[393382539,1762555832495,-151.0,0.00017688,2]
[393382541,1762555832505,-151.0,0.00017688,2]
[393382543,1762555832515,-151.0,0.00017688,2]
[393382544,1762555832525,-151.0,0.00017688,2]
[393382545,1762555832535,-151.0,0.00017688,2]
[393382546,1762555832546,-151.0,0.00017688,2]
[393382547,1762555832556,-151.0,0.00017688,2]
[393382548,1762555832566,-151.0,0.00017688,2]
[393382549,1762555832576,-151.0,0.00017688,2]
[393382550,1762555832586,-151.0,0.00017688,2]
[393382551,1762555832596,-151.0,0.00017688,2]
[393382552,1762555832606,-151.0,0.00017688,2]
[393382553,1762555832616,-151.0,0.00017688,2]
[393382554,1762555832626,-500.0,0.00017698,2]
[393382555,1762555832636,-500.0,0.00017698,2]
[393382556,1762555832646,-500.0,0.00017698,2]
[393382557,1762555832656,-500.0,0.00017698,2]
[393382558,1762555832666,-500.0,0.00017698,2]
[393382559,1762555832676,-204.70622116,0.00017698,2]
[393382560,1762555832686,-154.12324818,0.00017698,2]
[393382561,1762555832697,-500.0,0.00017698,2]
[393382562,1762555832708,-154.12324818,0.00017698,2]
[393382563,1762555832717,-500.0,0.00017698,2]
[393382564,1762555832727,-154.12324818,0.00017698,2]
[393382565,1762555832737,-500.0,0.00017698,2]
[393382566,1762555832748,-154.12324818,0.00017698,2]
[393382567,1762555832758,-500.0,0.00017698,2]
[393382568,1762555832767,-500.0,0.00017698,2]
[393382569,1762555832777,-500.0,0.00017698,2]
[393382570,1762555832787,-130890.43907346,0.00017699,2]
[393382571,1762555832802,-26266.83340579,0.00017699,2]
[393382572,1762555832818,-4345.45707973,0.00017699,2]
[393382573,1762555832834,-1447.06018569,0.00017699,2]
[393382577,1762555837793,-500.0,0.00017698,2]
[393382579,1762555837803,-49701.56872691,0.00017699,2]
[393382581,1762555837815,-59247.72496222,0.00017699,2]
[393382583,1762555837827,-27001.81929005,0.00017699,2]
[393382585,1762555837850,-1044.30765249,0.00017699,2]
[393382586,1762555837861,-255.61293443,0.00017699,2]
[393382587,1762555837872,-2077.6,0.00017699,2]
[393382588,1762555838084,-1682.01965938,0.00017699,2]
[393382592,1762555838113,-6800.0,0.00017699,2]
[393382617,1762555839829,-5483.1126143,0.00017699,2]
[393382620,1762555839895,-927.81802071,0.00017699,2]
[393382621,1762555839907,-3267.76608368,0.00017699,2]
[393382622,1762555842355,-1455.35913515,0.00017699,2]
[393382629,1762555842860,-519.230507,0.00017699,2]
[393382631,1762555842974,-1370.5957456,0.00017699,2]
[393382632,1762555843042,-1394.45955769,0.00017699,2]
[393382633,1762555843053,-1012.13556112,0.00017699,2]
[393382634,1762555843064,-93809.0798046,0.00017699,2]
[393382635,1762555843074,-1000.0,0.00017699,2]
[393382636,1762555843083,-354.86912786,0.00017699,2]
[393382637,1762555843092,-530.69707915,0.00017699,2]
[393382638,1762555843102,-2500.0,0.000177,6]
[393382639,1762555843112,-200.0,0.000177,6]
[393382640,1762555843122,-354.86912786,0.00017733,2]
[393382641,1762555843131,-530.69707915,0.00017733,2]
[393382642,1762555843145,-213.535815,0.0001774,6]
[393382643,1762555843155,-202.93383,0.0001774,6]
[393382644,1762555843164,-354.86912786,0.00017766,2]
[393382645,1762555843174,-530.69707915,0.00017766,2]
[393382646,1762555843185,-354.86912786,0.000178,2]
[393382647,1762555843195,-530.69707915,0.000178,2]
[393382648,1762555843204,-2500.0,0.000178,6]
[393382649,1762555843215,-200.0,0.000178,6]
[393382650,1762555843225,-213.535815,0.0001781,6]
[393382651,1762555843234,-202.93383,0.0001781,6]
[393382652,1762555843243,-2500.0,0.00017812,3]
[393382653,1762555843253,-2500.0,0.00017821,3]
[393382654,1762555843262,-2500.0,0.0001783,3]
[393382655,1762555843272,-354.86912786,0.00017833,2]
[393382657,1762555843282,-530.69707915,0.00017833,2]
[393382658,1762555843292,-2500.0,0.00017838,3]
[393382660,1762555843301,-2500.0,0.00017847,3]
[393382661,1762555843311,-2500.0,0.00017856,3]
[393382662,1762555843320,-2500.0,0.00017865,3]
[393382663,1762555843330,-354.86912786,0.00017867,2]
[393382664,1762555843339,-530.69707915,0.00017867,2]
[393382666,1762555843349,-2500.0,0.00017874,3]
[393382667,1762555843359,-155.15689,0.0001788,6]
[393382668,1762555843368,-213.535815,0.0001788,6]
[393382669,1762555843378,-202.93383,0.0001788,6]
[393382670,1762555843388,-2500.0,0.00017882,3]
[393382671,1762555843398,-2500.0,0.00017891,3]
[393382672,1762555843408,-2500.0,0.000179,3]
[393382673,1762555843417,-477.99034883,0.000179,3]
[393382674,1762555843427,-354.86912786,0.000179,2]
[393382675,1762555843436,-2500.0,0.000179,6]
[393382676,1762555843446,-530.69707915,0.000179,2]
[393382677,1762555843456,-470.60629255,0.000179,2]
[393382678,1762555843465,-200.0,0.000179,6]
[393382679,1762555843475,-567.21962,0.00017973,2]
[393382680,1762555843486,-500.0,0.00017973,2]
[393382681,1762555843495,-500.0,0.00017973,2]
[393382682,1762555843506,-500.0,0.00017973,2]
[393382683,1762555843516,-500.0,0.00017973,2]
[393382684,1762555843526,-500.0,0.00017973,2]
[393382685,1762555843536,-500.0,0.00017973,2]
[393382686,1762555843546,-500.0,0.00017973,2]
[393382687,1762555843555,-500.0,0.00017973,2]
[393382688,1762555843566,-200.04,0.00017989,2]
[393382689,1762555843576,-3869.1789027,0.00017999,2]
[393382690,1762555843585,-300.0,0.00017999,2]
[393382691,1762555843594,-300.0,0.00017999,2]
[393382692,1762555843604,-500.0,0.00017999,2]
[393382693,1762555843614,-500.0,0.00017999,2]
[393382694,1762555843623,-150.13185417,0.00017999,2]
[393382695,1762555843633,-500.0,0.00017999,2]
[393382696,1762555843642,-150.0,0.00017999,2]
[393382697,1762555843651,-3741.6400914,0.00017999,2]
[393382698,1762555843660,-300.0,0.00017999,2]
[393382699,1762555843669,-150.0,0.00017999,2]
[393382700,1762555843679,-250.0,0.00017999,2]
[393382701,1762555843688,-150.0,0.00017999,2]
[393382702,1762555843698,-150.0,0.00017999,2]
[393382703,1762555843707,-4185839.5981705,0.00018,2]
[393382704,1762555843719,-267.93741724,0.00018,2]
[393382705,1762555843732,-440.45145431,0.00018,2]
[393382706,1762555843742,-362.38083996,0.00018,2]
[393382707,1762555843754,-31241.27540709,0.00018,2]
[393382708,1762555843766,-1828.48000543,0.00018,2]
[393382713,1762555846305,-489.42126321,0.00018,2]
[393382718,1762555927930,500.0,0.0003911,30]
[393382719,1762555928336,500.0,0.0003911,30]
[393382720,1762555928967,500.0,0.0003911,30]
[393382721,1762555929586,500.0,0.0003911,30]
[393382722,1762555930215,500.0,0.0003911,30]
[393382723,1762555930437,239.75520452,0.0003911,30]
[393382724,1762555930809,500.0,0.0003911,30]
[393382725,1762555931415,500.0,0.0003911,30]
[393382726,1762555932023,500.0,0.0003911,30]
[393382727,1762555932632,500.0,0.0003911,30]
[393382728,1762555933250,500.0,0.0003911,30]
[393382729,1762555933870,500.0,0.0003911,30]
[393382730,1762555934519,500.0,0.0003911,30]
[393382731,1762555935160,500.0,0.0003911,30]
[393382732,1762555935784,500.0,0.0003911,30]
[393382733,1762555936419,500.0,0.0003911,30]
[393382734,1762555937039,500.0,0.0003911,30]
[393382736,1762555937671,500.0,0.0003911,30]
[393382737,1762555938299,500.0,0.0003911,30]
[393382738,1762555938996,500.0,0.0003911,30]
[393382739,1762555939526,500.0,0.0003911,30]
[393382744,1762556062795,377.24165983,0.0003911,120]
[393382750,1762556185198,395.47,0.00013699,2]
[393382754,1762556228190,500.0,0.0003911,120]
[393382755,1762556228788,500.0,0.0003911,120]
[393382756,1762556229396,500.0,0.0003911,120]
[393382757,1762556229997,500.0,0.0003911,120]
[393382758,1762556230638,500.0,0.0003911,120]
[393382759,1762556231253,500.0,0.0003911,120]
[393382760,1762556231933,500.0,0.0003911,120]
[393382761,1762556233289,754.0,0.0003911,30]
[393382762,1762556233598,500.0,0.0003911,120]
[393382763,1762556234720,500.0,0.0003911,120]
[393382764,1762556235370,500.0,0.0003911,120]
[393382772,1762556404850,177.55120021,0.0003911,120]
[393382773,1762556462296,151.0,0.00013699,2]
[393382774,1762556462326,151.0,0.00013699,2]
[393382775,1762556463742,196.19227193,0.00013699,2]
[393382786,1762556760445,211.02893932,0.00013699,2]
[393382796,1762557032180,-182.50894319,0.00016515,2]
[393382797,1762557032191,-1294.83,0.00016545,2]
[393382798,1762557032201,-403.1,0.00016582,2]
[393382799,1762557032211,-250.0,0.00016719,2]
[393382800,1762557032222,-75.44697744,0.00017,2]
[393382801,1762557032234,-174.55302256,0.00017,2]
[393382802,1762557032244,-166.67,0.00017088,2]
[393382803,1762557032254,-245.5820384,0.00017182,2]
[393382804,1762557032266,-242.4179616,0.00017182,2]
[393382805,1762557032277,-488.0,0.00017195,2]
[393382806,1762557032287,-488.0,0.00017242,2]
[393382807,1762557032297,-488.0,0.00017253,2]
[393382808,1762557032307,-300.0,0.000173,6]
[393382809,1762557032317,-165.38976112,0.00017382,2]
[393382810,1762557032329,-704.890961,0.00017382,2]
[393382811,1762557032350,-129.71927788,0.00017382,2]
[393382812,1762557032359,-300.0,0.00017382,2]
[393382813,1762557032369,-300.0,0.00017382,2]
[393382814,1762557032380,-1200.0,0.00017382,2]
[393382815,1762557032390,-488.0,0.00017383,2]
[393382816,1762557032399,-16642.95,0.00017383,2]
[393382817,1762557032409,-3719.25,0.00017383,2]
[393382818,1762557032420,-22199.79,0.00017383,2]
[393382819,1762557032430,-488.0,0.00017394,2]
[393382820,1762557032440,-600.0,0.000174,6]
[393382821,1762557032450,-488.0,0.00017417,2]
[393382822,1762557032460,-488.0,0.00017457,2]
[393382823,1762557032469,-7434.1585,0.00017499,2]
[393382824,1762557032479,-5000.0,0.00017499,2]
[393382825,1762557032489,-2614.35271782,0.00017499,2]
[393382826,1762557032499,-169.39233369,0.00017499,2]
[393382827,1762557032510,-2774.67647081,0.00017499,2]
[393382828,1762557032524,-1000.0,0.000175,6]
[393382829,1762557032534,-1086.2706,0.00017534,2]
[393382830,1762557032544,-2614.35271776,0.00017544,2]
[393382831,1762557032555,-2774.67647079,0.00017544,2]
[393382832,1762557032565,-185.94,0.00017561,2]
[393382833,1762557032576,-1596.0,0.0001757,2]
[393382834,1762557032586,-820.0,0.0001757,2]
[393382835,1762557032596,-812.0,0.0001757,2]
[393382836,1762557032606,-1273.0,0.0001757,2]
[393382837,1762557032617,-905.0,0.0001757,2]
[393382838,1762557032626,-1188.0,0.0001757,2]
[393382839,1762557032636,-6659.0,0.0001757,2]
[393382840,1762557032646,-559.0,0.0001757,2]
[393382841,1762557032656,-2142.0,0.0001757,2]
[393382842,1762557032666,-500.0,0.00017573,2]
[393382843,1762557032675,-500.0,0.00017573,2]
[393382844,1762557032685,-585.02702278,0.00017573,2]
[393382845,1762557032694,-500.0,0.00017573,2]
[393382846,1762557032704,-500.0,0.00017573,2]
[393382847,1762557032713,-500.0,0.00017573,2]
[393382848,1762557032725,-500.0,0.00017573,2]
[393382849,1762557032735,-500.0,0.00017573,2]
[393382850,1762557032745,-500.1429295,0.00017573,2]
[393382851,1762557032754,-500.0,0.00017573,2]
[393382852,1762557032763,-500.0,0.00017573,2]
[393382853,1762557032774,-500.0,0.00017573,2]
[393382854,1762557032783,-500.0,0.00017573,2]
[393382855,1762557032793,-218.7,0.00017573,2]
[393382856,1762557032803,-2614.35271776,0.00017588,2]
[393382857,1762557032812,-2774.67647079,0.00017588,2]
[393382858,1762557032822,-488.0,0.00017589,2]
[393382859,1762557032831,-3430.0,0.0001759,2]
[393382860,1762557032841,-217.20501353,0.00017598,2]
[393382861,1762557032851,-500.0,0.00017598,2]
[393382862,1762557032861,-500.0,0.00017598,2]
[393382863,1762557032871,-500.0,0.00017598,2]
[393382864,1762557032880,-500.0,0.00017598,2]
[393382865,1762557032890,-500.0,0.00017598,2]
[393382866,1762557032900,-500.0,0.00017598,2]
[393382867,1762557032909,-500.0,0.00017598,2]
[393382868,1762557032919,-500.0,0.00017598,2]
[393382869,1762557032929,-500.0,0.00017598,2]
[393382870,1762557032939,-500.0,0.00017598,2]
[393382871,1762557032948,-500.0,0.00017598,2]
[393382872,1762557032958,-500.0,0.00017598,2]
[393382873,1762557032968,-500.0,0.00017598,2]
[393382874,1762557032978,-500.0,0.00017598,2]
[393382875,1762557032989,-500.0,0.00017598,2]
[393382876,1762557032998,-500.0,0.00017598,2]
[393382877,1762557033008,-500.0,0.00017598,2]
[393382878,1762557033018,-166.76677015,0.00017598,2]
[393382879,1762557033029,-500.0,0.00017598,2]
[393382880,1762557033039,-500.0,0.00017598,2]
[393382881,1762557033049,-500.0,0.00017598,2]
[393382882,1762557033059,-500.0,0.00017598,2]
[393382883,1762557033068,-500.0,0.00017598,2]
[393382884,1762557033077,-300.52291346,0.00017598,2]
[393382885,1762557033087,-180.12932523,0.00017598,2]
[393382886,1762557033097,-344.52002883,0.00017598,2]
[393382887,1762557033107,-500.0,0.00017598,2]
[393382888,1762557033117,-500.0,0.00017598,2]
[393382889,1762557033127,-500.0,0.00017598,2]
[393382890,1762557033137,-515.63484931,0.00017598,2]
[393382891,1762557033147,-589.41461623,0.00017598,2]
[393382892,1762557033157,-290864.82687892,0.00017599,2]
[393382893,1762557033171,-48491.33965534,0.00017599,2]
[393382894,1762557033183,-40032.20508847,0.00017599,2]
[393382895,1762557033195,-40611.62837727,0.00017599,2]
[393382896,1762557033205,-1000.0,0.00017599,2]
[393382897,1762557033215,-1300.0,0.000176,6]
[393382898,1762557033226,-2614.35271776,0.00017633,2]
[393382899,1762557033236,-2774.67647079,0.00017633,2]
[393382900,1762557033246,-794.3495481,0.00017647,2]
[393382901,1762557033257,-2614.35271776,0.00017677,2]
[393382902,1762557033267,-2774.67647079,0.00017677,2]
[393382903,1762557033278,-500.0,0.00017693,2]
[393382904,1762557033289,-333.3076628,0.00017695,2]
[393382905,1762557033299,-1600.0,0.000177,6]
[393382906,1762557033310,-1000.0,0.000177,2]
[393382907,1762557033319,-488.0,0.000177,2]
[393382908,1762557033330,-2614.35271776,0.00017722,2]
[393382909,1762557033339,-2774.67647079,0.00017722,2]
[393382910,1762557033349,-221.84453216,0.00017763,2]
[393382911,1762557033360,-2614.35271776,0.00017766,2]
[393382912,1762557033370,-2774.67647079,0.00017766,2]
[393382913,1762557033380,-300.0,0.000178,6]
[393382914,1762557033390,-2614.35271776,0.00017811,2]
[393382915,1762557033399,-2774.67647079,0.00017811,2]
[393382916,1762557033410,-218.7,0.00017847,2]
[393382917,1762557033419,-9652.58384427,0.00017854,2]
[393382918,1762557033430,-2614.35271776,0.00017855,2]
[393382919,1762557033440,-2774.67647079,0.00017855,2]
[393382920,1762557033449,-477.21,0.000179,2]
[393382921,1762557033459,-300.0,0.000179,6]
[393382922,1762557033470,-2614.35271776,0.000179,2]
[393382923,1762557033480,-157.17304241,0.000179,3]
[393382924,1762557033490,-2774.67647079,0.000179,2]
[393382925,1762557033500,-761.18898141,0.000179,2]
[393382926,1762557033510,-3430.0,0.0001795,2]
[393382927,1762557033523,-3430.0,0.00017967,2]
[393382928,1762557033533,-500.0,0.0001797,2]
[393382929,1762557033542,-1000.0,0.0001797,2]
[393382930,1762557033553,-500.0,0.00017973,2]
[393382931,1762557033563,-233.81255911,0.00017973,2]
[393382932,1762557033588,-266.18744089,0.00017973,2]
[393382933,1762557033598,-500.0,0.00017973,2]
[393382934,1762557033608,-500.0,0.00017973,2]
[393382935,1762557033617,-500.0,0.00017973,2]
[393382936,1762557033627,-500.0,0.00017973,2]
[393382937,1762557033637,-500.0,0.00017973,2]
[393382938,1762557033647,-281.57003939,0.0001799,2]
[393382939,1762557033657,-281.57003939,0.0001799,2]
[393382940,1762557033667,-281.57003939,0.0001799,2]
[393382941,1762557033677,-4798.1520552,0.00017999,2]
[393382942,1762557033687,-300.0,0.00017999,2]
[393382943,1762557033698,-6461.3564974,0.00017999,2]
[393382944,1762557033708,-264.28427982,0.00017999,2]
[393382945,1762557033718,-253.76838782,0.00017999,2]
[393382946,1762557033728,-150.0,0.00017999,2]
[393382947,1762557033738,-500.0,0.00017999,2]
[393382948,1762557033748,-472.27503322,0.00017999,2]
[393382949,1762557033954,-300.0,0.00017999,2]
[393382950,1762557033964,-160.87,0.00017999,2]
[393382951,1762557033975,-300.0,0.00017999,2]
[393382952,1762557033985,-150.0,0.00017999,2]
[393382953,1762557033996,-150.0,0.00017999,2]
[393382954,1762557034006,-150.0,0.00017999,2]
[393382955,1762557034016,-300.0,0.00017999,2]
[393382956,1762557034026,-666.0,0.00017999,2]
[393382957,1762557034035,-500.0,0.00017999,2]
[393382958,1762557034045,-151.13904288,0.00017999,2]
[393382959,1762557034056,-150.0,0.00017999,2]
[393382960,1762557034066,-500.0,0.00017999,2]
[393382961,1762557034075,-300.0,0.00017999,2]
[393382962,1762557034085,-150.0,0.00017999,2]
[393382963,1762557034095,-150.0,0.00017999,2]
[393382964,1762557034105,-500.0,0.00017999,2]
[393382965,1762557034115,-150.0,0.00017999,2]
[393382966,1762557034124,-150.0,0.00017999,2]
[393382967,1762557034133,-451.0,0.00017999,2]
[393382968,1762557034143,-150.0,0.00017999,2]
[393382969,1762557034153,-200.0,0.00017999,2]
[393382970,1762557034163,-182.17511677,0.00017999,2]
[393382971,1762557034174,-525.92130896,0.00017999,2]
[393382972,1762557034184,-604.0,0.00018,2]
[393382973,1762557034193,-94039.98845486,0.00018,2]
[393382974,1762557034206,-145680.76847983,0.00018,2]
[393382977,1762557037707,-462.11065713,0.00018,2]
[393382978,1762557037718,-992.4052018,0.00018,2]
[393382980,1762557037840,-699.36702806,0.00018,2]
[393382982,1762557037852,-936.02531955,0.00018,2]
[393382985,1762557037868,-6598.37120863,0.00018,2]
[393382987,1762557037885,-6225.09639999,0.00018,2]
[393383005,1762557038017,-6543.10532443,0.00018,2]
[393383014,1762557038068,-150.0,0.00017999,2]
[393383016,1762557038082,-888.82018989,0.00018,2]
[393383027,1762557038173,-1631.20255611,0.00018,2]
[393383029,1762557038190,-1631.12475871,0.00018,2]
[393383047,1762557040211,-8695.36444377,0.00018,2]
[393383048,1762557040224,-8947.21879473,0.00018,2]
[393383049,1762557040239,-8943.78386462,0.00018,2]
[393383050,1762557040426,-166648.85055931,0.00018,2]
[393383052,1762557043269,-2487672.30615656,0.00018,2]
[393383079,1762557046346,-500.0,0.00017598,2]
[393383080,1762557046360,-600.0,0.00017598,2]
[393383081,1762557046372,-24820.0,0.00018,2]
[393383082,1762557046920,-966.18457599,0.00018,2]
[393383083,1762557046932,-527.68593067,0.00018,2]
[393383084,1762557047238,-140224.98258033,0.00018,2]
[393383109,1762557807652,500.0,0.00030097,120]
[393383110,1762557829264,-160.0,0.000155,2]
[393383111,1762557863642,500.0,0.00039086,30]
[393383112,1762557923599,1000.0,0.00039086,120]
[393383113,1762558027281,-5000.00131234,0.000162,5]
[393383114,1762558027524,-0.00737532,0.000162,5]
[393383117,1762558116090,10000.01,0.00015,3]
[393383118,1762558116114,10000.01,0.00015,3]
[393383119,1762558116138,10000.01,0.00015,3]
[393383120,1762558116167,10000.01,0.00015,3]
[393383121,1762558116191,10000.01,0.00015,3]
[393383122,1762558116214,10000.01,0.00015,3]
[393383123,1762558116240,10000.01,0.00015,3]
[393383124,1762558116264,10000.01,0.00015,3]
[393383125,1762558116287,10000.01,0.00015,3]
[393383126,1762558116309,10000.01,0.00015,3]